bitfinex/quotes_SOLUSD_20251030
["timestamp","ask_amount","ask_price","bid_price","bid_amount"]
[1761797164849,4.98535423,196.47,196.41,10.77657882]
[1761797165064,4.98535423,196.47,196.38,0.14216157]
[1761797165065,4.98535423,196.44,196.42,0.7]
[1761797165279,4.98535423,196.43,196.42,0.7]
[1761797165470,4.98535423,196.43,196.38,5.79216139]
[1761797165671,4.98535423,196.41,196.38,5.79216139]
[1761797165859,4.98535423,196.41,196.39,0.7]
[1761797166457,0.41,196.48,196.39,0.7]
[1761797166660,4.98535423,196.44,196.4,5.09164969]
[1761797166865,4.98535423,196.45,196.4,5.09164969]
[1761797167053,4.98535423,196.45,196.41,0.7]
[1761797167266,4.98535423,196.42,196.39,5.09187017]
[1761797167455,4.98535423,196.42,196.4,0.7]
[1761797167673,4.98535423,196.43,196.4,0.7]
[1761797168091,88.40392095,196.5,196.36,0.7]
[1761797168389,4.98535423,196.39,196.34,5.09320566]
[1761797168567,4.98535423,196.4,196.37,0.7]
[1761797169161,4.98535423,196.39,196.37,0.7]
[1761797169357,4.98535423,196.43,196.37,10.77776921]
[1761797169558,4.98535423,196.45,196.4,4.98535423]
[1761797169871,4.98535423,196.46,196.38,0.7]
[1761797170176,4.98535423,196.45,196.39,4.98535423]
[1761797170676,4.98535423,196.45,196.4,5.68535423]
[1761797170900,4.98535423,196.45,196.41,5.09139045]
[1761797171054,4.98535423,196.45,196.41,5.79139045]
[1761797171251,4.98535423,196.45,196.42,0.7]
[1761797171474,4.98535423,196.46,196.42,0.7]
[1761797171683,4.98535423,196.43,196.39,0.7]
[1761797171985,4.98535423,196.4,196.35,0.7]
[1761797172166,4.98535423,196.38,196.34,0.7]
[1761797172490,4.98535423,196.39,196.34,0.7]
[1761797172987,4.98535423,196.39,196.34,5.79307906]
[1761797173185,4.98535423,196.39,196.34,5.09307906]
[1761797173490,4.98535423,196.36,196.31,1.1993984]
[1761797173678,4.98535423,196.35,196.32,0.69]
[1761797173990,4.98535423,196.36,196.32,0.69]
[1761797174483,4.98535423,196.4,196.35,4.98535423]
[1761797174791,4.98535423,196.43,196.38,4.98535423]
[1761797174958,4.98535423,196.43,196.39,0.69]
[1761797175359,4.98535423,196.42,196.39,0.69]
[1761797175690,4.98535423,196.43,196.39,0.69]
[1761797177863,4.98535423,196.43,196.39,5.78189307]
[1761797178068,4.98535423,196.44,196.39,10.7672473]
[1761797178268,4.98535423,196.44,196.4,0.69]
[1761797181020,4.98535423,196.42,196.38,5.09208928]
[1761797181176,4.98535423,196.42,196.4,0.69]
[1761797181373,4.98535423,196.43,196.4,0.69]
[1761797181588,25.68187028,196.47,196.4,0.69]
[1761797181589,4.98535423,196.44,196.4,0.69]
[1761797182095,4.98535423,196.45,196.4,0.69]
[1761797182289,4.98535423,196.46,196.4,23.49603376]
[1761797182483,4.98535423,196.47,196.42,4.98535423]
[1761797182683,4.98535423,196.47,196.43,0.67]
[1761797182893,4.98535423,196.48,196.43,0.67]
[1761797183094,0.41,196.54,196.44,4.98535423]
[1761797183295,0.41,196.54,196.43,0.67]
[1761797183296,5.4980333,196.54,196.45,4.98535423]
[1761797183585,4.98535423,196.51,196.46,5.09009467]
[1761797183891,4.98535423,196.52,196.47,0.67]
[1761797184107,4.98535423,196.5,196.47,0.67]
[1761797184409,4.98535423,196.48,196.42,0.67]
[1761797184608,4.98535423,196.46,196.43,0.67]
[1761797184815,4.98535423,196.47,196.43,0.67]
[1761797184985,4.98535423,196.48,196.43,5.65535423]
[1761797185186,4.98535423,196.49,196.43,5.65535423]
[1761797185401,4.98535423,196.49,196.45,5.09035377]
[1761797185598,4.98535423,196.48,196.45,5.09035377]
[1761797186018,4.98535423,196.49,196.46,0.67]
[1761797186311,5.08796444,196.55,196.46,0.67]
[1761797186312,4.98535423,196.5,196.46,0.67]
[1761797186603,4.98535423,196.49,196.45,5.09035377]
[1761797186815,4.98535423,196.48,196.44,0.67]
[1761797187021,4.98535423,196.46,196.42,5.09112709]
[1761797187217,20.592,196.52,196.41,0.67]
[1761797187218,4.98535423,196.44,196.41,0.67]
[1761797187417,1.99424164,196.43,196.41,0.67]
[1761797187584,7.97696656,196.5,196.41,0.67]
[1761797187585,8.38696656,196.5,196.41,0.67]
[1761797187788,1.99424164,196.45,196.41,0.67]
[1761797188403,1.99424164,196.46,196.41,7.75561055]
[1761797188786,1.99424164,196.48,196.43,1.99424164]
[1761797188987,1.99424164,196.49,196.43,1.99424164]
[1761797189294,4.98307711,196.48,196.44,0.67]
[1761797189497,4.98307711,196.5,196.45,5.09035377]
[1761797189895,5.39307711,196.56,196.45,5.09035377]
[1761797189896,4.98307711,196.51,196.46,0.67]
[1761797190609,4.98307711,196.49,196.46,0.67]
[1761797190808,4.98307711,196.51,196.46,0.67]
[1761797191010,4.98307711,196.48,196.42,0.50911312]
[1761797191313,4.98307711,196.48,196.44,0.67]
[1761797191520,4.98307711,196.48,196.44,5.76043985]
[1761797191995,4.98307711,196.48,196.45,0.67]
[1761797192823,4.98307711,196.47,196.45,0.67]
[1761797193211,4.98307711,196.48,196.45,0.67]
[1761797193403,4.98307711,196.5,196.46,5.09009467]
[1761797193609,5.49779081,196.55,196.46,10.07317178]
[1761797193610,4.98307711,196.52,196.46,10.07317178]
[1761797193804,4.98307711,196.52,196.47,0.67]
[1761797194730,4.98307711,196.52,196.48,5.08957654]
[1761797195115,4.98307711,196.52,196.49,0.67]
[1761797195314,0.41,196.55,196.49,0.67]
[1761797195518,4.98307711,196.52,196.49,0.67]
[1761797195907,4.98307711,196.53,196.49,0.67]
[1761797196925,5.0865611,196.6,196.5,5.08905852]
[1761797197115,4.98307711,196.55,196.5,5.08905852]
[1761797197310,4.98307711,196.54,196.51,0.67]
[1761797197507,4.98307711,196.55,196.51,0.67]
[1761797197706,4.98307711,196.56,196.51,0.67]
[1761797199030,4.98307711,196.57,196.52,5.0885406]
[1761797199415,4.98307711,196.56,196.5,10.07196685]
[1761797199608,4.98307711,196.55,196.51,0.67]
[1761797199813,12.7145049,196.63,196.51,0.67]
[1761797199814,4.98307711,196.56,196.51,0.67]
[1761797200818,4.98307711,196.56,196.52,5.0885406]
[1761797201142,5.08624074,196.61,196.51,5.75875966]
[1761797201143,4.98307711,196.55,196.51,5.75875966]
[1761797201731,4.98307711,196.56,196.52,0.67]
[1761797201929,4.98307711,196.57,196.52,0.67]
[1761797202129,4.98307711,196.58,196.52,5.65307711]
[1761797202431,4.98307711,196.58,196.53,0.67]
[1761797203221,4.98307711,196.58,196.54,5.08802279]
[1761797203740,4.98307711,196.58,196.55,0.67]
[1761797204029,0.41,196.61,196.54,5.08802279]
[1761797204330,4.98307711,196.58,196.54,5.08802279]
[1761797204504,4.98307711,196.58,196.55,0.67]
[1761797204832,4.98307711,196.6,196.55,0.67]
[1761797205429,4.98307711,196.59,196.55,0.67]
[1761797206103,4.98307711,196.59,196.55,5.75767115]
[1761797206337,4.98307711,196.6,196.55,5.75767115]
[1761797206502,4.98307711,196.6,196.56,0.67]
[1761797207446,4.98307711,196.6,196.57,5.08724627]
[1761797207914,4.98307711,196.6,196.57,0.67]
[1761797208430,4.98307711,196.59,196.53,10.07133099]
[1761797208816,4.98307711,196.59,196.54,0.67]
[1761797209835,4.98307711,196.59,196.54,5.75790593]
[1761797210035,5.49569394,196.63,196.54,5.75790593]
[1761797210222,4.98307711,196.59,196.55,0.67]
[1761797211232,4.98307711,196.58,196.55,0.67]
[1761797211420,1.99123178,196.58,196.55,0.67]
[1761797212128,0.41,196.62,196.55,0.67]
[1761797212316,1.99123178,196.58,196.55,0.67]
[1761797212715,1.99123178,196.58,196.48,0.50895765]
[1761797212716,1.99123178,196.56,196.5,0.72]
[1761797212921,0.41,196.57,196.5,0.72]
[1761797212922,1.99123178,196.54,196.5,0.72]
[1761797213129,1.99123178,196.53,196.5,0.72]
[1761797213337,1.99123178,196.54,196.5,0.72]
[1761797213724,1.99123178,196.53,196.46,0.50900946]
[1761797213937,40.38587673,196.6,196.46,10.50882769]
[1761797213938,1.99123178,196.5,196.46,10.50882769]
[1761797214156,1.99123178,196.49,196.46,0.72]
[1761797214870,0.41,196.53,196.46,0.72]
[1761797214871,1.99123178,196.48,196.46,0.72]
[1761797215018,1.99123178,196.48,196.43,0.72]
[1761797215219,1.99123178,196.47,196.43,0.72]
[1761797217045,1.99123178,196.5,196.44,1.99123178]
[1761797217427,1.99123178,196.5,196.45,0.72]
[1761797218046,1.99123178,196.49,196.45,0.72]
[1761797218354,1.99123178,196.48,196.45,0.72]
[1761797219443,3.11472476,196.48,196.45,0.72]
[1761797220034,3.11472476,196.48,196.39,10.29801858]
[1761797220035,3.11472476,196.46,196.41,3.83472476]
[1761797220351,0.41,196.49,196.41,5.09138613]
[1761797220650,3.11472476,196.45,196.42,0.72]
[1761797221136,3.11472476,196.46,196.42,0.72]
[1761797222434,3.11472476,196.44,196.39,0.72]
[1761797222628,5.08941119,196.49,196.39,0.72]
[1761797222629,3.11472476,196.43,196.39,0.72]
[1761797223030,0.41,196.45,196.39,0.72]
[1761797223242,3.11472476,196.43,196.39,0.72]
[1761797224032,3.11472476,196.43,196.39,5.81185483]
[1761797224431,3.11472476,196.43,196.4,0.72]
[1761797224832,3.11472476,196.41,196.36,0.72]
[1761797225130,3.11472476,196.41,196.36,5.81265521]
[1761797225526,3.11472476,196.41,196.37,0.72]
[1761797225927,3.11472476,196.46,196.4,3.11472476]
[1761797226240,3.11472476,196.46,196.41,0.72]
[1761797226828,3.11472476,196.45,196.41,0.72]
[1761797227030,3.11472476,196.43,196.39,0.72]
[1761797227234,5.50021152,196.46,196.37,3.11472476]
[1761797227235,3.11472476,196.41,196.37,0.72]
[1761797227431,3.11472476,196.41,196.34,14.88203335]
[1761797227641,5.09021152,196.46,196.33,43.11402477]
[1761797227642,25.68221152,196.46,196.33,10.29817419]
[1761797227832,25.68221152,196.46,196.26,14.9814829]
[1761797227833,0.41,196.4,196.26,14.9814829]
[1761797228152,3.11472476,196.37,196.33,0.72]
[1761797228837,0.41,196.42,196.3,0.72]
[1761797228838,3.11472476,196.34,196.3,0.72]
[1761797229145,3.11472476,196.34,196.29,8.92919377]
[1761797229343,21.002,196.41,196.31,3.11472476]
[1761797229547,21.002,196.41,196.32,3.11472476]
[1761797229730,3.11472476,196.38,196.32,3.11472476]
[1761797229930,3.11472476,196.37,196.33,0.72]
[1761797230129,20.592,196.39,196.3,9.78882769]
[1761797230333,21.002,196.39,196.31,0.72]
[1761797230550,3.11472476,196.35,196.31,0.72]
[1761797230929,3.11472476,196.36,196.31,3.83472476]
[1761797231126,3.11472476,196.36,196.32,0.72]
[1761797231353,3.11472476,196.35,196.3,0.72]
[1761797231535,3.11472476,196.34,196.3,0.72]
[1761797231735,3.11472476,196.35,196.3,0.72]
[1761797233150,3.11472476,196.31,196.27,5.75477125]
[1761797233460,0.41,196.34,196.27,0.66]
[1761797233668,3.11472476,196.28,196.26,0.1]
[1761797233833,3.11472476,196.27,196.26,0.1]
[1761797234029,3.11472476,196.27,196.23,0.1]
[1761797234247,0.31,196.26,196.23,0.1]
[1761797234443,3.11472476,196.24,196.23,0.1]
[1761797234630,5.40542228,196.26,196.23,0.1]
[1761797234843,5.40542228,196.26,196.2,0.1]
[1761797234844,3.11472476,196.24,196.2,0.1]
[1761797235037,0.31,196.25,196.2,0.1]
[1761797235360,7.44379818,196.21,196.2,0.1]
[1761797235562,7.65379818,196.21,196.17,0.1]
[1761797235735,7.44379818,196.18,196.17,0.1]
[1761797236059,9.78882769,196.27,196.17,0.1]
[1761797236060,20.702,196.23,196.17,0.1]
[1761797236258,20.592,196.22,196.17,0.1]
[1761797236440,7.44379818,196.18,196.17,0.1]
[1761797237259,0.11,196.18,196.17,0.1]
[1761797237459,7.44379818,196.18,196.17,0.1]
[1761797238466,7.55379818,196.18,196.17,0.1]
[1761797238645,7.44379818,196.18,196.17,0.1]
[1761797238834,7.55379818,196.18,196.17,0.1]
[1761797239037,7.55379818,196.18,196.06,7.0264017]
[1761797239236,7.44379818,196.14,196.07,3.7603504]
[1761797239439,7.44379818,196.14,196.06,7.0264017]
[1761797239440,20.592,196.09,196.06,7.0264017]
[1761797239635,7.44379818,196.07,196.06,7.0264017]
[1761797239840,50.0,196.09,196.06,7.0264017]
[1761797239841,20.592,196.09,196.06,7.0264017]
[1761797240058,7.44379818,196.07,196.06,7.0264017]
[1761797240436,20.592,196.14,196.06,7.6864017]
[1761797240635,7.44379818,196.1,196.07,0.66]
[1761797240854,7.44379818,196.08,196.06,7.0264017]
[1761797241052,20.592,196.11,196.06,7.0264017]
[1761797241361,7.44379818,196.07,196.06,7.0264017]
[1761797241567,20.592,196.13,196.06,12.78680539]
[1761797241776,7.44379818,196.07,196.06,12.12680539]
[1761797241943,7.44379818,196.09,196.07,0.66]
[1761797242141,20.592,196.13,196.07,0.66]
[1761797242339,7.44379818,196.1,196.07,0.66]
[1761797242678,12.75185411,196.2,196.08,5.0999592]
[1761797242966,7.44379818,196.1,196.08,5.0999592]
[1761797243180,12.75185411,196.2,196.09,0.66]
[1761797243181,7.44379818,196.11,196.09,0.66]
[1761797243338,7.44379818,196.1,196.06,12.7867745]
[1761797243539,20.592,196.17,196.06,12.7867745]
[1761797243540,20.592,196.17,196.07,0.66]
[1761797243757,7.44379818,196.1,196.07,0.66]
[1761797244172,7.44379818,196.11,196.07,0.66]
[1761797244338,7.44379818,196.12,196.07,0.66]
[1761797244545,7.44379818,196.12,196.08,17.8498572]
[1761797245056,7.44379818,196.12,196.09,0.66]
[1761797245670,15.33232821,196.22,196.09,0.66]
[1761797245671,20.592,196.18,196.09,0.66]
[1761797245874,7.44379818,196.12,196.09,0.66]
[1761797246255,20.592,196.19,196.09,0.66]
[1761797246460,9.78882769,196.26,196.1,7.44379818]
[1761797246461,7.44379818,196.15,196.1,7.44379818]
[1761797246645,20.592,196.21,196.11,5.09917903]
[1761797246844,7.44379818,196.15,196.11,5.75917903]
[1761797247146,7.44379818,196.15,196.12,0.66]
[1761797247974,7.44379818,196.14,196.12,0.66]
[1761797248353,7.44379818,196.15,196.12,0.66]
[1761797248558,7.44379818,196.15,196.13,5.09865905]
[1761797249081,7.44379818,196.15,196.13,5.75865905]
[1761797249371,7.44379818,196.16,196.13,5.75865905]
[1761797250044,5.09635054,196.22,196.13,5.75865905]
[1761797250245,7.44379818,196.15,196.13,5.75865905]
[1761797250465,7.44379818,196.15,196.13,0.66]
[1761797250644,20.592,196.23,196.1,0.66]
[1761797250645,7.44379818,196.14,196.1,0.66]
[1761797250847,7.44379818,196.11,196.07,5.1002193]
[1761797251045,7.44379818,196.1,196.08,0.66]
[1761797251464,7.44379818,196.1,196.06,7.6864017]
[1761797251676,7.44379818,196.1,196.07,0.66]
[1761797252749,7.44379818,196.1,196.07,5.76017616]
[1761797252977,7.44379818,196.1,196.07,0.66]
[1761797253149,7.44379818,196.1,196.08,0.66]
[1761797253551,7.44379818,196.09,196.08,0.66]
[1761797253750,7.44379818,196.09,196.06,7.0264017]
[1761797253983,20.592,196.16,196.07,0.66]
[1761797254151,7.44379818,196.11,196.07,0.66]
[1761797254490,7.44379818,196.08,196.06,7.0264017]
[1761797254664,20.592,196.16,196.06,7.0264017]
[1761797254665,7.44379818,196.07,196.06,7.0264017]
[1761797255373,5.09972219,196.09,196.06,7.0264017]
[1761797255672,50.0,196.15,196.06,7.6864017]
[1761797255673,7.44379818,196.08,196.06,7.6864017]
[1761797255983,20.592,196.12,196.06,7.0264017]
[1761797256281,20.592,196.15,196.07,0.66]
[1761797256581,7.44379818,196.1,196.07,0.66]
[1761797256758,7.44379818,196.09,196.07,0.66]
[1761797256953,7.44379818,196.08,196.06,7.0264017]
[1761797257169,7.44379818,196.09,196.06,7.6864017]
[1761797257655,7.44379818,196.09,196.07,0.66]
[1761797257857,20.592,196.13,196.07,0.66]
[1761797258071,7.44379818,196.1,196.07,0.66]
[1761797258266,7.44379818,196.09,196.07,0.66]
[1761797258586,109.93098926,196.21,196.07,0.66]
[1761797258587,14.88514814,196.22,196.07,8.10379818]
[1761797258788,5.09632045,196.22,196.09,7.44379818]
[1761797258964,9.78882769,196.24,196.08,4.39802054]
[1761797258965,7.44379818,196.16,196.1,16.28125778]
[1761797259164,7.44379818,196.16,196.11,3.73802054]
[1761797259355,7.44379818,196.15,196.12,3.73802054]
[1761797259560,20.592,196.2,196.11,0.66]
[1761797259790,7.44379818,196.14,196.11,0.66]
[1761797259966,7.44379818,196.13,196.11,0.66]
[1761797260862,7.44379818,196.14,196.11,0.66]
[1761797261165,7.44379818,196.15,196.12,3.74283426]
[1761797261364,7.44379818,196.13,196.06,19.77742902]
[1761797261595,7.44379818,196.13,196.07,9.50487564]
[1761797261894,7.44379818,196.13,196.08,4.40465634]
[1761797262057,7.44379818,196.13,196.09,3.74465634]
[1761797262401,7.44379818,196.12,196.09,4.40465634]
[1761797262567,20.592,196.17,196.09,4.40465634]
[1761797262568,25.68962872,196.17,196.1,3.74769041]
[1761797262767,7.44379818,196.12,196.09,0.66]
[1761797262969,7.44379818,196.12,196.1,3.74759105]
[1761797263195,7.44379818,196.11,196.08,5.09992714]
[1761797263493,7.44379818,196.1,196.09,3.75037786]
[1761797263790,7.44379818,196.11,196.09,3.75037786]
[1761797263986,7.44379818,196.12,196.1,4.41037786]
[1761797264189,20.592,196.19,196.11,3.7503463]
[1761797264494,7.44379818,196.12,196.1,0.66]
[1761797264693,7.44379818,196.11,196.1,0.66]
[1761797264874,7.44379818,196.12,196.1,4.41333997]
[1761797265076,7.44379818,196.12,196.11,3.75333997]
[1761797265269,7.44379818,196.12,196.11,4.41333997]
[1761797265670,7.44379818,196.12,196.11,3.75333997]
[1761797265989,7.44379818,196.12,196.06,7.0264017]
[1761797265990,7.44379818,196.12,196.06,7.6864017]
[1761797266290,7.44379818,196.09,196.07,4.41408228]
[1761797266585,7.44379818,196.09,196.08,3.75408228]
[1761797266886,7.44379818,196.1,196.08,4.41408228]
[1761797267189,20.592,196.19,196.09,4.41408228]
[1761797267363,7.44379818,196.13,196.1,4.41408228]
[1761797267566,7.44379818,196.13,196.11,3.75408228]
[1761797267863,25.68919885,196.19,196.12,3.75408228]
[1761797268060,25.68919885,196.19,196.11,0.66]
[1761797268288,25.68919885,196.19,196.12,3.75989932]
[1761797268586,38.43194822,196.19,196.08,0.66]
[1761797268791,38.43194822,196.19,196.09,3.76315744]
[1761797268998,38.43194822,196.19,196.1,3.76315744]
[1761797269167,38.43194822,196.19,196.11,3.76315744]
[1761797269362,38.43194822,196.19,196.12,3.76315744]
[1761797269571,38.43194822,196.19,196.08,5.75984159]
[1761797269784,38.43194822,196.19,196.09,3.7663936]
[1761797269980,38.43194822,196.19,196.1,3.7663936]
[1761797270182,38.43194822,196.19,196.11,3.7663936]
[1761797270382,7.44379818,196.12,196.09,0.66]
[1761797270584,7.44379818,196.13,196.1,3.76928119]
[1761797270896,7.44379818,196.12,196.11,3.76928119]
[1761797271195,5.0973811,196.18,196.11,3.76928119]
[1761797271368,5.0973811,196.18,196.12,3.76928119]
[1761797271572,5.0973811,196.18,196.08,0.66]
[1761797271888,17.84078001,196.18,196.09,3.77406124]
[1761797272086,20.592,196.15,196.1,3.77406124]
[1761797272398,20.592,196.15,196.11,3.77406124]
[1761797272580,20.592,196.15,196.12,3.77406124]
[1761797272772,20.592,196.16,196.13,3.77406124]
[1761797272972,20.592,196.15,196.14,3.77406124]
[1761797273190,28.03579818,196.15,196.14,3.77406124]
[1761797273883,7.44379818,196.15,196.14,3.77406124]
[1761797274901,12.54193735,196.15,196.14,3.77406124]
[1761797275087,12.54193735,196.15,196.14,3.78560398]
[1761797275501,33.13393735,196.15,196.14,3.78560398]
[1761797275812,53.32308347,196.15,196.06,7.0264017]
[1761797276096,7.44379818,196.07,196.06,7.7364017]
[1761797277303,3.12745716,196.07,196.06,7.7364017]
[1761797278207,3.12745716,196.09,196.06,7.7364017]
[1761797278507,3.12745716,196.08,196.06,7.7364017]
[1761797278795,3.12745716,196.07,196.06,7.0264017]
[1761797280601,23.71945716,196.07,196.06,7.0264017]
[1761797281187,7.0264017,196.11,196.06,7.0264017]
[1761797281188,20.592,196.09,196.06,7.7364017]
[1761797281390,2.00234982,196.07,196.06,7.0264017]
[1761797281797,20.592,196.03,195.97,0.1]
[1761797282031,22.59434982,195.98,195.97,0.1]
[1761797282308,22.59434982,195.98,195.86,0.1]
[1761797282309,20.592,195.97,195.89,0.71]
[1761797283008,2.00234982,195.93,195.89,0.71]
[1761797283208,20.592,195.99,195.9,3.81306959]
[1761797283506,0.14216157,196.03,195.91,4.52306959]
[1761797283507,2.00234982,195.96,195.91,4.52306959]
[1761797283680,2.00234982,195.96,195.87,10.29937039]
[1761797283681,2.00234982,195.97,195.92,4.52306959]
[1761797284013,2.00234982,195.96,195.93,3.81306959]
[1761797284315,8.00939928,196.0,195.93,0.71]
[1761797284495,8.00939928,196.0,195.88,7.10751624]
[1761797284496,8.00939928,196.0,195.94,0.71]
[1761797285299,8.00939928,196.0,195.91,0.71]
[1761797285300,3.73755071,195.99,195.91,0.71]
[1761797285503,5.01165191,195.92,195.91,0.71]
[1761797285824,8.74920262,195.92,195.91,0.71]
[1761797286187,5.01165191,195.93,195.91,0.71]
[1761797286800,5.01165191,195.93,195.91,5.81437819]
[1761797287011,5.01165191,195.94,195.91,5.81437819]
[1761797287215,5.01165191,195.93,195.91,0.71]
[1761797287698,5.01165191,195.93,195.86,0.1]
[1761797287899,5.01165191,195.91,195.87,0.71]
[1761797288083,5.01165191,195.96,195.87,0.71]
[1761797288285,3.72854824,195.95,195.87,0.71]
[1761797288484,5.01165191,195.89,195.87,0.71]
[1761797288689,5.01165191,195.88,195.87,0.71]
[1761797288889,5.01165191,195.88,195.86,0.1]
[1761797289114,20.592,195.93,195.86,0.1]
[1761797289325,3.72486124,195.92,195.86,0.1]
[1761797289611,20.592,195.93,195.87,0.71]
[1761797289811,20.592,195.94,195.88,5.10516642]
[1761797290012,5.01165191,195.93,195.88,5.10516642]
[1761797290241,5.01165191,195.93,195.89,0.71]
[1761797290523,5.01165191,195.9,195.88,0.71]
[1761797291100,20.592,195.98,195.88,0.71]
[1761797291437,5.01165191,195.94,195.88,0.85216157]
[1761797291607,5.01165191,195.94,195.89,5.01165191]
[1761797291809,5.01165191,195.95,195.91,5.10438466]
[1761797292006,20.592,195.98,195.92,0.71]
[1761797292311,5.01165191,195.96,195.92,0.71]
[1761797292502,5.01165191,195.95,195.92,0.71]
[1761797292811,20.592,195.98,195.92,0.71]
[1761797293014,5.01165191,195.94,195.92,0.71]
[1761797293816,5.01165191,195.93,195.92,0.71]
[1761797294736,5.01165191,195.94,195.92,0.71]
[1761797294906,5.01165191,195.93,195.89,5.76476159]
[1761797295232,5.01165191,195.91,195.89,0.66]
[1761797295609,25.6945842,195.98,195.89,0.66]
[1761797295812,5.01165191,195.91,195.89,0.66]
[1761797296611,5.01165191,195.9,195.86,0.1]
[1761797296826,20.592,195.96,195.87,5.67165191]
[1761797297023,5.01165191,195.91,195.87,0.66]
[1761797297228,20.592,195.97,195.88,0.66]
[1761797297529,5.01165191,195.92,195.88,0.66]
[1761797297913,5.01165191,195.92,195.89,5.10490581]
[1761797298103,5.01165191,195.91,195.89,5.76490581]
[1761797298308,5.01165191,195.9,195.87,5.10523613]
[1761797298502,5.01165191,195.89,195.86,5.86568032]
[1761797298734,5.01165191,195.96,195.86,5.86568032]
[1761797298735,20.592,195.92,195.86,0.1]
[1761797298907,5.01165191,195.96,195.86,0.1]
[1761797299107,5.01165191,195.92,195.87,0.66]
[1761797299507,20.592,195.97,195.87,0.66]
[1761797299508,5.01165191,195.94,195.87,0.66]
[1761797299709,5.01165191,195.95,195.89,5.01165191]
[1761797299929,5.01165191,195.96,195.91,5.10438466]
[1761797300318,50.0,196.06,195.92,5.67165191]
[1761797300513,5.01165191,195.98,195.92,0.66]
[1761797300717,5.01165191,195.97,195.93,0.66]
[1761797301113,5.01165191,195.95,195.91,17.86534632]
[1761797301327,5.01165191,195.96,195.91,17.86534632]
[1761797301525,5.01165191,195.95,195.92,0.66]
[1761797302409,5.01165191,195.94,195.88,0.66]
[1761797302712,5.01165191,195.92,195.88,0.66]
[1761797303120,5.01165191,195.91,195.88,0.66]
[1761797303528,20.592,195.96,195.88,0.66]
[1761797303834,5.01165191,195.92,195.88,0.66]
[1761797304034,5.01165191,195.92,195.89,5.10490581]
[1761797304337,5.01165191,195.94,195.89,5.10490581]
[1761797304517,5.01165191,195.94,195.9,0.66]
[1761797305221,20.592,195.98,195.9,0.66]
[1761797305424,5.01165191,195.96,195.9,5.67165191]
[1761797305621,5.01165191,195.96,195.91,0.66]
[1761797305828,4.51165191,195.96,195.91,0.66]
[1761797306133,5.01165191,195.95,195.91,0.66]
[1761797306310,5.01165191,195.96,195.92,5.10412413]
[1761797306510,5.01165191,195.98,195.92,10.11577604]
[1761797306711,5.01165191,195.97,195.93,0.66]
[1761797307940,20.592,195.99,195.87,5.76542706]
[1761797307941,5.01165191,195.94,195.87,5.76542706]
[1761797308140,20.592,195.96,195.87,5.76542706]
[1761797308314,5.01165191,195.89,195.87,5.76542706]
[1761797308514,25.60365191,195.96,195.86,0.1]
[1761797308515,5.01165191,195.88,195.86,0.1]
[1761797308713,5.01165191,195.89,195.87,0.66]
[1761797308931,5.01165191,195.9,195.87,0.66]
[1761797309233,5.01165191,195.89,195.87,0.66]
[1761797309636,25.60365191,195.96,195.86,0.1]
[1761797309637,5.01165191,195.88,195.86,0.1]
[1761797309826,25.60365191,195.87,195.86,0.1]
[1761797310427,9.93098926,195.91,195.86,3.88737812]
[1761797310627,5.31695889,195.92,195.86,0.1]
[1761797310628,5.01165191,195.87,195.86,0.1]
[1761797310818,5.01165191,195.87,195.86,3.88692541]
[1761797311138,5.10422849,195.92,195.86,3.88692541]
[1761797311139,20.592,195.9,195.86,3.88692541]
[1761797311309,20.592,195.9,195.86,0.1]
[1761797311310,5.01165191,195.87,195.86,0.1]
[1761797311514,20.592,195.91,195.86,3.88673828]
[1761797311740,5.01165191,195.87,195.86,0.1]
[1761797313520,5.01165191,195.87,195.86,3.88665922]
[1761797313836,5.01165191,195.87,195.86,4.54665922]
[1761797314023,5.01165191,195.87,195.86,3.88648176]
[1761797314226,5.01165191,195.87,195.86,0.1]
[1761797314442,10.11707897,195.87,195.86,0.1]
[1761797317939,22.55136074,195.92,195.86,0.1]
[1761797317940,50.0,195.97,195.86,4.54862383]
[1761797318132,5.01165191,195.88,195.87,3.78862383]